fUST/lending_fUST_20250208
["ID","MTS","AMOUNT","RATE_DAILY","PERIOD"]
[352155061,1738962666801,-500.0,0.00012054,2]
[352155064,1738962666810,-500.0,0.00012054,2]
[352155066,1738962666820,-7452.65,0.00012054,2]
[352155068,1738962666829,-3342.84,0.00012054,2]
[352155070,1738962666839,-897.79,0.00012054,2]
[352155072,1738962666849,-500.0,0.00012054,2]
[352155074,1738962666859,-1940.58,0.00012054,2]
[352155076,1738962666870,-782.94,0.00012054,2]
[352155078,1738962666880,-4324.35,0.00012054,2]
[352155080,1738962666892,-500.0,0.00012054,2]
[352155082,1738962666906,-500.0,0.00012054,2]
[352155084,1738962666916,-711.25,0.00012054,2]
[352155116,1738962667211,-927.85,0.00012054,2]
[352155120,1738962667236,-642.82,0.00012054,2]
[352155122,1738962667251,-327.09575677,0.00012054,2]
[352155124,1738962667261,-500.0,0.00012054,2]
[352155126,1738962667270,-3853.86,0.00012054,2]
[352155128,1738962667280,-500.0,0.00012054,2]
[352155129,1738962667290,-1709.259368,0.00012054,2]
[352155130,1738962667302,-9180.41,0.00012054,2]
[352155131,1738962667312,-785.47,0.00012054,2]
[352155132,1738962667321,-1709.259368,0.00012054,2]
[352155133,1738962667331,-500.0,0.00012054,2]
[352155134,1738962667340,-500.0,0.00012054,2]
[352155135,1738962667351,-500.0,0.00012054,2]
[352155136,1738962667360,-500.0,0.00012054,2]
[352155137,1738962667369,-500.0,0.00012054,2]
[352155138,1738962667379,-500.0,0.00012054,2]
[352155139,1738962667389,-871.26,0.00012054,2]
[352155140,1738962667399,-5445.99,0.00012054,2]
[352155141,1738962667409,-976.93,0.00012054,2]
[352155142,1738962667418,-970.67,0.00012054,2]
[352155143,1738962667428,-843.32,0.00012054,2]
[352155144,1738962667437,-501.54,0.00012054,2]
[352155145,1738962667447,-2755.25,0.00012054,2]
[352155147,1738962667456,-500.0,0.00012054,2]
[352155149,1738962667468,-1544.76,0.00012054,2]
[352155151,1738962667478,-1317.1,0.00012054,2]
[352155153,1738962667490,-500.0,0.00012054,2]
[352155155,1738962667503,-43804.69,0.00012054,2]
[352155157,1738962667513,-580.7,0.00012054,2]
[352155159,1738962667522,-568.31187269,0.00012054,2]
[352155161,1738962667533,-2139.86,0.00012054,2]
[352155163,1738962667542,-16502.59,0.00012054,2]
[352155165,1738962667551,-999.27,0.00012054,2]
[352155167,1738962667561,-672.978993,0.00012054,2]
[352155169,1738962667571,-672.978993,0.00012054,2]
[352155171,1738962667581,-500.0,0.00012054,2]
[352155173,1738962667590,-505.61,0.00012054,2]
[352155175,1738962667599,-1643.97,0.00012054,2]
[352155177,1738962667609,-1207.9,0.00012054,2]
[352155179,1738962667618,-500.0,0.00012054,2]
[352155181,1738962667628,-634.83,0.00012054,2]
[352155183,1738962667638,-1250.7,0.00012054,2]
[352155185,1738962667647,-500.0,0.00012054,2]
[352155187,1738962667657,-699.07,0.00012054,2]
[352155189,1738962667666,-5896.95,0.00012054,2]
[352155191,1738962667677,-620.11,0.00012054,2]
[352155193,1738962667687,-2219.74,0.00012054,2]
[352155196,1738962667698,-528.68,0.00012054,2]
[352155198,1738962667708,-1277.73,0.00012054,2]
[352155200,1738962667718,-1469.2,0.00012054,2]
[352155202,1738962667728,-2505.05,0.00012054,2]
[352155204,1738962667738,-5599.01,0.00012054,2]
[352155206,1738962667747,-830.238234,0.00012054,2]
[352155208,1738962667758,-618.83,0.00012054,2]
[352155210,1738962667768,-830.238234,0.00012054,2]
[352155212,1738962667777,-770.29,0.00012054,2]
[352155214,1738962667786,-2636.82,0.00012054,2]
[352155216,1738962667796,-19198.2,0.00012054,2]
[352155218,1738962667806,-14885.98,0.00012054,2]
[352155219,1738962667816,-500.0,0.00012054,2]
[352155222,1738962667826,-500.0,0.00012054,2]
[352155223,1738962667835,-1694.48,0.00012054,2]
[352155226,1738962667846,-500.0,0.00012054,2]
[352155228,1738962667856,-351.07624599,0.00012069,2]
[352155230,1738962667866,-202.2444336,0.00012082,2]
[352155232,1738962667875,-151.0,0.00012096,2]
[352155234,1738962667885,-152.0,0.00012096,2]
[352155236,1738962667896,-152.0,0.00012096,2]
[352155238,1738962667906,-152.0,0.00012096,2]
[352155240,1738962667915,-152.0,0.00012096,2]
[352155242,1738962667925,-152.0,0.00012096,2]
[352155244,1738962667935,-152.0,0.00012096,2]
[352155246,1738962667945,-152.0,0.00012096,2]
[352155248,1738962667955,-152.0,0.00012096,2]
[352155250,1738962667964,-152.0,0.00012096,2]
[352155252,1738962667973,-152.0,0.00012096,2]
[352155254,1738962667982,-152.0,0.00012096,2]
[352155256,1738962667991,-152.0,0.00012096,2]
[352155258,1738962668001,-152.0,0.00012096,2]
[352155260,1738962668010,-152.0,0.00012096,2]
[352155262,1738962668020,-152.0,0.00012096,2]
[352155264,1738962668030,-152.0,0.00012096,2]
[352155266,1738962668039,-152.0,0.00012096,2]
[352155268,1738962668048,-166.0,0.00012096,2]
[352155270,1738962668058,-152.0,0.00012096,2]
[352155272,1738962668067,-166.0,0.00012096,2]
[352155274,1738962668077,-152.0,0.00012096,2]
[352155276,1738962668086,-152.0,0.00012096,2]
[352155278,1738962668095,-168.22,0.00012096,2]
[352155280,1738962668105,-386.08140088,0.00012115,2]
[352155282,1738962668114,-154.47,0.00012139,2]
[352155284,1738962668123,-151.0,0.00012191,2]
[352155285,1738962668132,-151.0,0.00012191,2]
[352155288,1738962668142,-633.484656,0.00012191,2]
[352155290,1738962668152,-633.484656,0.00012191,2]
[352155291,1738962668161,-195.454731,0.00012191,2]
[352155293,1738962668171,-195.454731,0.00012191,2]
[352155295,1738962668181,-151.0,0.00012191,2]
[352155298,1738962668191,-165.402054,0.00012191,2]
[352155300,1738962668200,-165.402054,0.00012191,2]
[352155301,1738962668210,-176.734843,0.00012191,2]
[352155304,1738962668220,-176.734843,0.00012191,2]
[352155306,1738962668231,-507.85,0.00012191,2]
[352155308,1738962668242,-500.0,0.00012191,2]
[352155310,1738962668251,-342.21831475,0.00012191,2]
[352155312,1738962668261,-297.115337,0.00012191,2]
[352155314,1738962668270,-297.115337,0.00012191,2]
[352155316,1738962668280,-607.3,0.00012191,2]
[352155318,1738962668289,-853.45,0.00012191,2]
[352155320,1738962668299,-156.471295,0.00012191,2]
[352155322,1738962668309,-610.05,0.00012191,2]
[352155324,1738962668320,-432.633577,0.00012191,2]
[352155326,1738962668330,-500.0,0.00012191,2]
[352155328,1738962668340,-500.0,0.00012191,2]
[352155330,1738962668350,-432.633577,0.00012191,2]
[352155332,1738962668360,-316.049395,0.00012191,2]
[352155334,1738962668370,-316.049395,0.00012191,2]
[352155336,1738962668379,-507.44,0.00012191,2]
[352155338,1738962668388,-500.0,0.00012191,2]
[352155340,1738962668398,-1185.69,0.00012191,2]
[352155342,1738962668407,-500.0,0.00012191,2]
[352155344,1738962668417,-956.52,0.00012191,2]
[352155346,1738962668427,-151.0,0.00012191,2]
[352155348,1738962668437,-639.47,0.00012191,2]
[352155350,1738962668446,-682.63,0.00012191,2]
[352155352,1738962668456,-151.0,0.00012191,2]
[352155355,1738962668466,-464.2399067,0.00012191,2]
[352155357,1738962668475,-327.654678,0.00012191,2]
[352155358,1738962668484,-327.654678,0.00012191,2]
[352155361,1738962668498,-351.223628,0.00012191,2]
[352155362,1738962668508,-1260.39,0.00012191,2]
[352155365,1738962668518,-799.91,0.00012191,2]
[352155367,1738962668527,-351.223628,0.00012191,2]
[352155369,1738962668538,-500.0,0.00012191,2]
[352155371,1738962668547,-589.88,0.00012191,2]
[352155373,1738962668556,-500.0,0.00012191,2]
[352155375,1738962668566,-499.368706,0.00012191,2]
[352155377,1738962668576,-499.368706,0.00012191,2]
[352155379,1738962668586,-1201.86,0.00012191,2]
[352155381,1738962668595,-210.675468,0.00012191,2]
[352155383,1738962668604,-210.675468,0.00012191,2]
[352155385,1738962668613,-706.87,0.00012191,2]
[352155387,1738962668623,-600.84,0.00012191,2]
[352155389,1738962668633,-742.471922,0.00012191,2]
[352155391,1738962668643,-276.36421035,0.00012191,2]
[352155393,1738962668653,-742.471922,0.00012191,2]
[352155395,1738962668663,-979.254684,0.00012191,2]
[352155397,1738962668673,-439.82422426,0.00012191,2]
[352155399,1738962668683,-406.260727,0.00012191,2]
[352155401,1738962668692,-979.254684,0.00012191,2]
[352155403,1738962668702,-406.260727,0.00012191,2]
[352155405,1738962668713,-500.0,0.00012191,2]
[352155407,1738962668722,-561.82649532,0.00012191,2]
[352155409,1738962668731,-500.0,0.00012191,2]
[352155411,1738962668741,-811.88,0.00012191,2]
[352155413,1738962668751,-151.0,0.00012191,2]
[352155415,1738962668761,-1095.57,0.00012191,2]
[352155417,1738962668771,-315.753272,0.00012191,2]
[352155419,1738962668781,-1081.61,0.00012191,2]
[352155421,1738962668791,-315.753272,0.00012191,2]
[352155423,1738962668800,-384.03492535,0.00012191,2]
[352155425,1738962668810,-500.0,0.00012191,2]
[352155427,1738962668821,-657.72,0.00012191,2]
[352155429,1738962668830,-500.0,0.00012191,2]
[352155431,1738962668840,-1372.29,0.00012191,2]
[352155433,1738962668849,-651.601454,0.00012191,2]
[352155435,1738962668859,-252.157486,0.00012191,2]
[352155437,1738962668870,-651.601454,0.00012191,2]
[352155439,1738962668880,-441.66,0.00012191,2]
[352155441,1738962668889,-500.0,0.00012191,2]
[352155443,1738962668898,-1524.91,0.00012191,2]
[352155446,1738962668908,-699.39,0.00012191,2]
[352155448,1738962668918,-1198.95,0.00012191,2]
[352155450,1738962668928,-500.0,0.00012191,2]
[352155452,1738962668937,-643.46,0.00012191,2]
[352155454,1738962668946,-500.0,0.00012191,2]
[352155456,1738962668956,-500.0,0.00012191,2]
[352155458,1738962668965,-2506.37,0.00012191,2]
[352155460,1738962668975,-500.0,0.00012191,2]
[352155461,1738962668984,-500.0,0.00012191,2]
[352155463,1738962668994,-7452.65,0.00012191,2]
[352155465,1738962669003,-3342.84,0.00012191,2]
[352155466,1738962669012,-897.79,0.00012191,2]
[352155468,1738962669021,-500.0,0.00012191,2]
[352155469,1738962669031,-1940.58,0.00012191,2]
[352155471,1738962669044,-782.94,0.00012191,2]
[352155473,1738962669053,-4324.35,0.00012191,2]
[352155475,1738962669063,-500.0,0.00012191,2]
[352155476,1738962669073,-500.0,0.00012191,2]
[352155478,1738962669083,-711.25,0.00012191,2]
[352155480,1738962669094,-927.85,0.00012191,2]
[352155481,1738962669104,-642.82,0.00012191,2]
[352155483,1738962669114,-500.0,0.00012191,2]
[352155485,1738962669124,-3853.86,0.00012191,2]
[352155486,1738962669132,-1709.259368,0.00012191,2]
[352155488,1738962669142,-9180.41,0.00012191,2]
[352155490,1738962669152,-785.47,0.00012191,2]
[352155491,1738962669161,-1709.259368,0.00012191,2]
[352155493,1738962669171,-500.0,0.00012191,2]
[352155494,1738962669180,-500.0,0.00012191,2]
[352155496,1738962669190,-500.0,0.00012191,2]
[352155498,1738962669200,-500.0,0.00012191,2]
[352155499,1738962669210,-500.0,0.00012191,2]
[352155501,1738962669219,-500.0,0.00012191,2]
[352155503,1738962669228,-871.26,0.00012191,2]
[352155504,1738962669238,-5445.99,0.00012191,2]
[352155506,1738962669247,-976.93,0.00012191,2]
[352155508,1738962669256,-970.67,0.00012191,2]
[352155509,1738962669266,-843.32,0.00012191,2]
[352155511,1738962669274,-501.54,0.00012191,2]
[352155513,1738962669286,-2755.25,0.00012191,2]
[352155515,1738962669296,-500.0,0.00012191,2]
[352155516,1738962669305,-1544.76,0.00012191,2]
[352155518,1738962669315,-1317.1,0.00012191,2]
[352155520,1738962669324,-500.0,0.00012191,2]
[352155522,1738962669334,-43804.69,0.00012191,2]
[352155523,1738962669343,-2139.86,0.00012191,2]
[352155525,1738962669353,-16502.59,0.00012191,2]
[352155527,1738962669362,-999.27,0.00012191,2]
[352155528,1738962669372,-672.978993,0.00012191,2]
[352155530,1738962669382,-672.978993,0.00012191,2]
[352155532,1738962669391,-500.0,0.00012191,2]
[352155534,1738962669400,-505.61,0.00012191,2]
[352155535,1738962669409,-1643.97,0.00012191,2]
[352155537,1738962669419,-1207.9,0.00012191,2]
[352155539,1738962669429,-500.0,0.00012191,2]
[352155541,1738962669438,-634.83,0.00012191,2]
[352155542,1738962669448,-1250.7,0.00012191,2]
[352155544,1738962669460,-500.0,0.00012191,2]
[352155546,1738962669469,-699.07,0.00012191,2]
[352155548,1738962669478,-5896.95,0.00012191,2]
[352155549,1738962669488,-620.11,0.00012191,2]
[352155551,1738962669501,-2219.74,0.00012191,2]
[352155553,1738962669510,-528.68,0.00012191,2]
[352155555,1738962669521,-1277.73,0.00012191,2]
[352155556,1738962669530,-1469.2,0.00012191,2]
[352155558,1738962669541,-3940.64533719,0.00012191,2]
[352155572,1738962669715,-1658.36466281,0.00012191,2]
[352155574,1738962669726,-2505.05,0.00012191,2]
[352155576,1738962669735,-830.238234,0.00012191,2]
[352155578,1738962669744,-618.83,0.00012191,2]
[352155579,1738962669754,-830.238234,0.00012191,2]
[352155581,1738962669763,-770.29,0.00012191,2]
[352155583,1738962669773,-2636.82,0.00012191,2]
[352155585,1738962669782,-563.89767153,0.00012191,2]
[352155587,1738962669794,-18634.30232847,0.00012191,2]
[352155588,1738962669804,-12378.68003553,0.00012191,2]
[352155590,1738962669816,-2507.29996447,0.00012191,2]
[352155592,1738962669825,-500.0,0.00012191,2]
[352155594,1738962669835,-500.0,0.00012191,2]
[352155595,1738962669844,-1694.48,0.00012191,2]
[352155597,1738962669854,-500.0,0.00012191,2]
[352155599,1738962669863,-250.56291899,0.00012196,2]
[352155601,1738962669874,-354.7326672,0.00012247,2]
[352155603,1738962669884,-500.0,0.00012328,2]
[352155604,1738962669893,-200.26824663,0.00012328,2]
[352155606,1738962669903,-500.0,0.00012328,2]
[352155608,1738962669913,-500.0,0.00012328,2]
[352155610,1738962669923,-200.96315094,0.00012328,2]
[352155611,1738962669932,-151.0,0.00012328,2]
[352155613,1738962669941,-151.0,0.00012328,2]
[352155615,1738962669951,-633.484656,0.00012328,2]
[352155616,1738962669960,-633.484656,0.00012328,2]
[352155618,1738962669969,-633.484656,0.00012328,2]
[352155620,1738962669978,-633.484656,0.00012328,2]
[352155622,1738962669988,-151.0,0.00012328,2]
[352155623,1738962669997,-195.454731,0.00012328,2]
[352155625,1738962670007,-195.454731,0.00012328,2]
[352155627,1738962670016,-195.454731,0.00012328,2]
[352155628,1738962670025,-195.454731,0.00012328,2]
[352155630,1738962670034,-165.402054,0.00012328,2]
[352155632,1738962670044,-165.402054,0.00012328,2]
[352155633,1738962670053,-176.734843,0.00012328,2]
[352155635,1738962670063,-176.734843,0.00012328,2]
[352155637,1738962670071,-507.85,0.00012328,2]
[352155638,1738962670081,-500.0,0.00012328,2]
[352155640,1738962670090,-297.115337,0.00012328,2]
[352155642,1738962670099,-297.115337,0.00012328,2]
[352155643,1738962670108,-607.3,0.00012328,2]
[352155645,1738962670118,-853.45,0.00012328,2]
[352155647,1738962670127,-156.471295,0.00012328,2]
[352155649,1738962670137,-156.471295,0.00012328,2]
[352155650,1738962670146,-610.05,0.00012328,2]
[352155652,1738962670156,-432.633577,0.00012328,2]
[352155654,1738962670166,-500.0,0.00012328,2]
[352155656,1738962670179,-500.0,0.00012328,2]
[352155657,1738962670189,-432.633577,0.00012328,2]
[352155670,1738962670330,-316.049395,0.00012328,2]
[352155671,1738962670340,-316.049395,0.00012328,2]
[352155673,1738962670350,-500.0,0.00012328,2]
[352155675,1738962670359,-1185.69,0.00012328,2]
[352155677,1738962670369,-500.0,0.00012328,2]
[352155678,1738962670378,-956.52,0.00012328,2]
[352155680,1738962670387,-299.816089,0.00012328,2]
[352155682,1738962670397,-639.47,0.00012328,2]
[352155684,1738962670407,-682.63,0.00012328,2]
[352155685,1738962670416,-151.0,0.00012328,2]
[352155687,1738962670430,-327.654678,0.00012328,2]
[352155689,1738962670439,-327.654678,0.00012328,2]
[352155691,1738962670448,-351.223628,0.00012328,2]
[352155693,1738962670458,-1260.39,0.00012328,2]
[352155694,1738962670467,-799.91,0.00012328,2]
[352155696,1738962670476,-351.223628,0.00012328,2]
[352155698,1738962670486,-500.0,0.00012328,2]
[352155700,1738962670496,-589.88,0.00012328,2]
[352155701,1738962670509,-500.0,0.00012328,2]
[352155703,1738962670518,-499.368706,0.00012328,2]
[352155705,1738962670527,-499.368706,0.00012328,2]
[352155707,1738962670538,-1201.86,0.00012328,2]
[352155708,1738962670547,-210.675468,0.00012328,2]
[352155710,1738962670556,-210.675468,0.00012328,2]
[352155712,1738962670568,-706.87,0.00012328,2]
[352155714,1738962670578,-600.84,0.00012328,2]
[352155716,1738962670588,-742.471922,0.00012328,2]
[352155717,1738962670597,-742.471922,0.00012328,2]
[352155719,1738962670607,-979.254684,0.00012328,2]
[352155721,1738962670616,-406.260727,0.00012328,2]
[352155723,1738962670625,-979.254684,0.00012328,2]
[352155724,1738962670636,-406.260727,0.00012328,2]
[352155726,1738962670646,-500.0,0.00012328,2]
[352155728,1738962670656,-500.0,0.00012328,2]
[352155730,1738962670666,-811.88,0.00012328,2]
[352155732,1738962670675,-151.0,0.00012328,2]
[352155733,1738962670685,-572.33418264,0.00012328,2]
[352157004,1738963832455,-250.0,9.576e-05,2]
[352157005,1738963832466,-24900.0,9.683e-05,2]
[352157006,1738963832476,-388.5987275,9.89e-05,2]
[352157007,1738963832486,-673.16,9.943e-05,2]
[352157008,1738963832495,-300.0,0.00010149,2]
[352157009,1738963832505,-192.00527384,0.00010858,2]
[352157010,1738963832515,-482.4067224,0.00010858,2]
[352157011,1738963832524,-500.0,0.00010864,2]
[352157012,1738963832534,-500.0,0.00010864,2]
[352157013,1738963832545,-500.0,0.00010864,2]
[352157014,1738963832555,-500.0,0.00010864,2]
[352157015,1738963832564,-500.0,0.00010864,2]
[352157016,1738963832575,-500.0,0.00010864,2]
[352157017,1738963832585,-500.0,0.00010864,2]
[352157018,1738963832595,-250.77291122,0.00010864,2]
[352157019,1738963832605,-500.0,0.00010864,2]
[352157020,1738963832615,-151.0,0.00010951,2]
[352157021,1738963832624,-500.0,0.00010958,2]
[352157022,1738963832634,-500.0,0.00010958,2]
[352157023,1738963832643,-500.0,0.00010958,2]
[352157024,1738963832653,-188.0,0.00010958,2]
[352157025,1738963832663,-500.0,0.00010958,2]
[352157026,1738963832674,-500.0,0.00010958,2]
[352157027,1738963832684,-500.0,0.00010958,2]
[352157028,1738963832693,-572.57559636,0.00010958,2]
[352157029,1738963832703,-500.0,0.00010958,2]
[352157030,1738963832712,-500.0,0.00010958,2]
[352157031,1738963832722,-528.71,0.00010958,2]
[352157032,1738963832731,-500.0,0.00010958,2]
[352157033,1738963832741,-500.0,0.00010958,2]
[352157034,1738963832751,-314.68494082,0.00010958,2]
[352157035,1738963832761,-500.0,0.00010958,2]
[352157036,1738963832770,-500.0,0.00010958,2]
[352157037,1738963832780,-500.0,0.00010958,2]
[352157038,1738963832790,-500.0,0.00010958,2]
[352157039,1738963832800,-500.0,0.00010958,2]
[352157040,1738963832810,-500.0,0.00010958,2]
[352157041,1738963832820,-500.0,0.00010958,2]
[352157042,1738963832830,-500.0,0.00010958,2]
[352157043,1738963832840,-500.0,0.00010958,2]
[352157044,1738963832856,-500.0,0.00010958,2]
[352157045,1738963832867,-620.03,0.00010958,2]
[352157046,1738963832878,-408.073163,0.00010958,2]
[352157047,1738963832888,-500.0,0.00010958,2]
[352157048,1738963832899,-495.85697037,0.00010958,2]
[352157049,1738963832909,-500.0,0.00010958,2]
[352157050,1738963832923,-500.0,0.00010958,2]
[352157051,1738963832938,-500.0,0.00010958,2]
[352157052,1738963832949,-500.0,0.00010958,2]
[352157053,1738963832959,-201.50763819,0.00010958,2]
[352157090,1738963837955,-3700.0,0.00010876,2]
[352157091,1738963837965,-298.49236181,0.00010958,2]
[352157093,1738963837974,-741.06,0.00010958,2]
[352157094,1738963837985,-500.0,0.00010958,2]
[352157095,1738963837994,-500.0,0.00010958,2]
[352157096,1738963838004,-500.0,0.00010958,2]
[352157097,1738963838014,-500.0,0.00010958,2]
[352157098,1738963838024,-500.0,0.00010958,2]
[352157099,1738963838034,-500.0,0.00010958,2]
[352157100,1738963838044,-576.21,0.00010958,2]
[352157101,1738963838053,-500.0,0.00010958,2]
[352157103,1738963838063,-399.19,0.00010958,2]
[352157106,1738963838073,-500.0,0.00010958,2]
[352157107,1738963838084,-637.26,0.00010958,2]
[352157109,1738963838094,-500.0,0.00010958,2]
[352157111,1738963838105,-500.0,0.00010958,2]
[352157113,1738963838116,-500.0,0.00010958,2]
[352157115,1738963838126,-500.0,0.00010958,2]
[352157117,1738963838138,-500.0,0.00010958,2]
[352157118,1738963838147,-500.0,0.00010958,2]
[352157119,1738963838157,-500.0,0.00010958,2]
[352157120,1738963838167,-500.0,0.00010958,2]
[352157121,1738963838179,-500.0,0.00010958,2]
[352157122,1738963838189,-500.0,0.00010958,2]
[352157123,1738963838199,-500.0,0.00010958,2]
[352157124,1738963838209,-500.0,0.00010958,2]
[352157125,1738963838219,-500.0,0.00010958,2]
[352157126,1738963838230,-533.05,0.00010958,2]
[352157127,1738963838240,-500.0,0.00010958,2]
[352157128,1738963838249,-500.0,0.00010958,2]
[352157129,1738963838259,-500.0,0.00010958,2]
[352157130,1738963838268,-787.74,0.00010958,2]
[352157131,1738963838277,-500.0,0.00010958,2]
[352157132,1738963838286,-437.9165222,0.00010958,2]
[352157133,1738963838296,-500.0,0.00010958,2]
[352157134,1738963838306,-500.0,0.00010958,2]
[352157135,1738963838316,-500.0,0.00010958,2]
[352157136,1738963838326,-500.0,0.00010958,2]
[352157137,1738963838336,-327.86889593,0.00010958,2]
[352157138,1738963838345,-500.0,0.00010958,2]
[352157139,1738963838355,-500.0,0.00010958,2]
[352157140,1738963838365,-500.0,0.00010958,2]
[352157141,1738963838374,-500.0,0.00010958,2]
[352157142,1738963838384,-500.0,0.00010958,2]
[352157143,1738963838394,-537.24,0.00010958,2]
[352157144,1738963838404,-706.53,0.00010958,2]
[352157145,1738963838413,-500.0,0.00010958,2]
[352157146,1738963838425,-500.0,0.00010958,2]
[352157147,1738963838435,-751.16,0.00010958,2]
[352157148,1738963838446,-500.0,0.00010958,2]
[352157149,1738963838456,-721.07,0.00010958,2]
[352157150,1738963838467,-500.0,0.00010958,2]
[352157151,1738963838477,-500.0,0.00010958,2]
[352157152,1738963838487,-500.0,0.00010958,2]
[352157153,1738963838496,-500.0,0.00010958,2]
[352157154,1738963838506,-500.0,0.00010958,2]
[352157155,1738963838515,-500.0,0.00010958,2]
[352157156,1738963838525,-534.7,0.00010958,2]
[352157157,1738963838534,-500.0,0.00010958,2]
[352157158,1738963838544,-500.0,0.00010958,2]
[352157159,1738963838554,-500.0,0.00010958,2]
[352157160,1738963838564,-500.0,0.00010958,2]
[352157161,1738963838574,-502.46918374,0.00010958,2]
[352157162,1738963838584,-500.0,0.00010958,2]
[352157163,1738963838594,-500.0,0.00010958,2]
[352157164,1738963838603,-500.0,0.00010958,2]
[352157165,1738963838612,-500.0,0.00010958,2]
[352157166,1738963838622,-432.43469808,0.00010958,2]
[352157167,1738963838631,-507.43,0.00010958,2]
[352157168,1738963838640,-531.42375485,0.00010958,2]
[352157169,1738963838857,-189.79448464,0.00010958,2]
[352157170,1738963838866,-616.75,0.00010958,2]
[352157171,1738963838876,-292.68226245,0.00010958,2]
[352157172,1738963838886,-540.31659901,0.00010958,2]
[352157173,1738963838897,-596.11651276,0.00010958,2]
[352157174,1738963838907,-500.0,0.00010958,2]
[352157175,1738963838917,-500.0,0.00010958,2]
[352157176,1738963838933,-500.0,0.00010958,2]
[352157177,1738963838943,-500.0,0.00010958,2]
[352157178,1738963838953,-500.0,0.00010958,2]
[352157179,1738963838963,-529.19,0.00010958,2]
[352157180,1738963838973,-500.0,0.00010958,2]
[352157181,1738963838982,-500.0,0.00010958,2]
[352157182,1738963838992,-500.0,0.00010958,2]
[352157183,1738963839002,-799.3,0.00010958,2]
[352157184,1738963839012,-500.0,0.00010958,2]
[352157185,1738963839022,-500.0,0.00010958,2]
[352157186,1738963839033,-503.97,0.00010958,2]
[352157187,1738963839043,-500.0,0.00010958,2]
[352157188,1738963839052,-500.0,0.00010958,2]
[352157189,1738963839063,-500.0,0.00010958,2]
[352157190,1738963839072,-500.0,0.00010958,2]
[352157191,1738963839081,-500.0,0.00010958,2]
[352157192,1738963839091,-500.0,0.00010958,2]
[352157193,1738963839101,-624.39,0.00010958,2]
[352157194,1738963839110,-914.86,0.00010958,2]
[352157195,1738963839120,-599.04,0.00010958,2]
[352157196,1738963839130,-500.0,0.00010958,2]
[352157197,1738963839140,-1200.25,0.00010958,2]
[352157198,1738963839149,-500.0,0.00010958,2]
[352157199,1738963839159,-545.04,0.00010958,2]
[352157200,1738963839169,-500.0,0.00010958,2]
[352157201,1738963839182,-500.0,0.00010958,2]
[352157202,1738963839191,-500.0,0.00010958,2]
[352157203,1738963839201,-575.3,0.00010958,2]
[352157204,1738963839211,-611.22,0.00010958,2]
[352157205,1738963839220,-500.0,0.00010958,2]
[352157206,1738963839231,-500.0,0.00010958,2]
[352157207,1738963839242,-500.0,0.00010958,2]
[352157208,1738963839252,-500.0,0.00010958,2]
[352157209,1738963839261,-541.34,0.00010958,2]
[352157210,1738963839270,-4968.44,0.00010958,2]
[352157211,1738963839279,-500.0,0.00010958,2]
[352157212,1738963839289,-500.0,0.00010958,2]